{"text_format":"3","workbook":"xlsx","n_sheets":4,"sheets":["Vue d’ensemble du budget","Récapitulatif du budget","Dépenses mensuelles","Données supplémentaires"],"not_rendered":{"charts":1,"images":4,"defined_names":7,"pivot_tables":2},"read":"whole","date_system":"1900"}

{"sheet":"Vue d’ensemble du budget","index":0,"n_rows":12,"n_cols":8,"rows_kept":12,"merged":[[1,1,1,2],[2,1,2,2],[3,1,3,2],[4,1,4,2]]}
[{"$nulls":7}," "]
[null,"Balance"]
[null,"SOLDE ESTIMÉ",null,{"$f":"Revenu_prévu-Dépenses_prévues","v":{"v":1585,"d":"1,585 $"}},null,"Estimé moins dépenses"]
[null,"SOLDE RÉEL ",null,{"$f":"Revenu_réel-Dépenses_réelles","v":{"v":1740,"d":"1,740 $"}},null,"Réel moins dépenses"]
[null,"Écart",null,{"$f":"D4-D3","v":{"v":155,"d":"155 $"}},null,"Réel moins estimé"]
[null,"Revenu",{"$nulls":3},"Dépenses"]
[null,null,"Projection","Réel",null,"Projection","Réel"]
[null,"Revenu 1",{"v":6000,"d":"6,000 $"},{"v":5800,"d":"5,800 $"},null,{"$f":"SUM(Tableau_Dépenses_mensuelles[Coût prévu])","v":{"v":7915,"d":"7,915 $"}},{"$f":"SUM(Tableau_Dépenses_mensuelles[Coût réel])","v":{"v":7860,"d":"7,860 $"}}]
[null,"Revenu 2",{"v":1000,"d":"1,000 $"},{"v":2300,"d":"2,300 $"}]
[null,"Revenu supplémentaire",{"v":2500,"d":"2,500 $"},{"v":1500,"d":"1,500 $"}]
[null,"Revenu total",{"$f":"SUM(C8:C10)","v":{"v":9500,"d":"9,500 $"}},{"$f":"SUM(D8:D10)","v":{"v":9600,"d":"9,600 $"}}]
[null,"Répartition des dépenses réelles"]

{"sheet":"Récapitulatif du budget","index":1,"n_rows":41,"n_cols":7,"rows_kept":41}
[null,"Récapitulatif du budget",{"$nulls":4}," "]
[]
[null,"Catégorie","Coût prévu ","Coût réel ","Écart "]
[null,"Enfants",{"v":140,"d":"140 $"},{"v":140,"d":"140 $"},{"v":0,"d":"0 $"}]
[null,"Devoirs extrascolaires",{"v":40,"d":"40 $"},{"v":40,"d":"40 $"},{"v":0,"d":"0 $"}]
[null,"Frais médicaux",null,null,{"v":0,"d":"0 $"}]
[null,"Fournitures scolaires",null,null,{"v":0,"d":"0 $"}]
[null,"Frais de scolarité",{"v":100,"d":"100 $"},{"v":100,"d":"100 $"},{"v":0,"d":"0 $"}]
[]
[null,"Loisirs",{"v":400,"d":"400 $"},{"v":358,"d":"358 $"},{"v":42,"d":"42 $"}]
[null,"Concerts",{"v":50,"d":"50 $"},{"v":40,"d":"40 $"},{"v":10,"d":"10 $"}]
[null,"Théâtre en direct",{"v":200,"d":"200 $"},{"v":150,"d":"150 $"},{"v":50,"d":"50 $"}]
[null,"Cinéma",{"v":50,"d":"50 $"},{"v":28,"d":"28 $"},{"v":22,"d":"22 $"}]
[null,"Musique (CD, téléchargements, etc.).",{"v":50,"d":"50 $"},{"v":30,"d":"30 $"},{"v":20,"d":"20 $"}]
[null,"Événements sportifs",{"v":0,"d":"0 $"},{"v":40,"d":"40 $"},{"v":-40,"d":"(40 $)"}]
[null,"Vidéo/DVD (achats)",{"v":20,"d":"20 $"},{"v":50,"d":"50 $"},{"v":-30,"d":"(30 $)"}]
[null,"Vidéo/DVD (location)",{"v":30,"d":"30 $"},{"v":20,"d":"20 $"},{"v":10,"d":"10 $"}]
[]
[null,"Repas",{"v":1100,"d":"1,100 $"},{"v":1320,"d":"1,320 $"},{"v":-220,"d":"(220 $)"}]
[]
[null,"Cadeaux et association caritative",{"v":100,"d":"100 $"},{"v":125,"d":"125 $"},{"v":-25,"d":"(25 $)"}]
[]
[null,"Logement",{"v":2830,"d":"2,830 $"},{"v":2702,"d":"2,702 $"},{"v":-72,"d":"(72 $)"}]
[]
[null,"Assurance",{"v":900,"d":"900 $"},{"v":900,"d":"900 $"},{"v":0,"d":"0 $"}]
[]
[null,"Prêts",{"v":200,"d":"200 $"},{"v":200,"d":"200 $"},{"v":0,"d":"0 $"}]
[]
[null,"Soins personnels",{"v":150,"d":"150 $"},{"v":140,"d":"140 $"},{"v":10,"d":"10 $"}]
[]
[null,"Animaux",{"v":170,"d":"170 $"},{"v":100,"d":"100 $"},{"v":70,"d":"70 $"}]
[]
[null,"Impôts",{"v":300,"d":"300 $"},{"v":300,"d":"300 $"},{"v":0,"d":"0 $"}]
[]
[null,"Transport",{"v":1425,"d":"1,425 $"},{"v":1375,"d":"1,375 $"},{"v":50,"d":"50 $"}]
[]
[null,"Épargne",{"v":200,"d":"200 $"},{"v":200,"d":"200 $"},{"v":0,"d":"0 $"}]
[null,"Compte de placement",{"v":200,"d":"200 $"},{"v":200,"d":"200 $"},{"v":0,"d":"0 $"}]
[null,"Compte d’épargne retraite",null,null,{"v":0,"d":"0 $"}]
[]
[null,"Total général",{"v":7915,"d":"7,915 $"},{"v":7860,"d":"7,860 $"},{"v":-145,"d":"(145 $)"}]

{"sheet":"Dépenses mensuelles","index":2,"n_rows":61,"n_cols":8,"rows_kept":61}
[{"$nulls":7}," "]
[null,"Description","Catégorie","Coût prévu","Coût réel","Écart","Vue d’ensemble des coûts réels"]
[null,"Devoirs extrascolaires","Enfants",{"v":40,"d":"40 $"},{"v":40,"d":"40 $"},{"$f":"IF(OR(Tableau_Dépenses_mensuelles[[#This Row],[Coût prévu]]=\"\",Tableau_Dépenses_mensuelles[[#This Row],[Coût réel]]=\"\"),\"\",Tableau_Dépenses_mensuelles[[#This Row],[Coût prévu]]-Tableau_Dépenses_mensuelles[[#This Row],[Coût réel]])","v":{"v":0,"d":"0 $"}},{"$f":"Tableau_Dépenses_mensuelles[[#This Row],[Coût réel]]","v":40}]
[null,"Frais médicaux","Enfants",null,null,{"$f":"IF(OR(Tableau_Dépenses_mensuelles[[#This Row],[Coût prévu]]=\"\",Tableau_Dépenses_mensuelles[[#This Row],[Coût réel]]=\"\"),\"\",Tableau_Dépenses_mensuelles[[#This Row],[Coût prévu]]-Tableau_Dépenses_mensuelles[[#This Row],[Coût réel]])","v":""},{"$f":"Tableau_Dépenses_mensuelles[[#This Row],[Coût réel]]","v":0}]
[null,"Fournitures scolaires","Enfants",null,null,{"$f":"IF(OR(Tableau_Dépenses_mensuelles[[#This Row],[Coût prévu]]=\"\",Tableau_Dépenses_mensuelles[[#This Row],[Coût réel]]=\"\"),\"\",Tableau_Dépenses_mensuelles[[#This Row],[Coût prévu]]-Tableau_Dépenses_mensuelles[[#This Row],[Coût réel]])","v":""},{"$f":"Tableau_Dépenses_mensuelles[[#This Row],[Coût réel]]","v":0}]
[null,"Frais de scolarité","Enfants",{"v":100,"d":"100 $"},{"v":100,"d":"100 $"},{"$f":"IF(OR(Tableau_Dépenses_mensuelles[[#This Row],[Coût prévu]]=\"\",Tableau_Dépenses_mensuelles[[#This Row],[Coût réel]]=\"\"),\"\",Tableau_Dépenses_mensuelles[[#This Row],[Coût prévu]]-Tableau_Dépenses_mensuelles[[#This Row],[Coût réel]])","v":{"v":0,"d":"0 $"}},{"$f":"Tableau_Dépenses_mensuelles[[#This Row],[Coût réel]]","v":100}]
[null,"Concerts","Loisirs",{"v":50,"d":"50 $"},{"v":40,"d":"40 $"},{"$f":"IF(OR(Tableau_Dépenses_mensuelles[[#This Row],[Coût prévu]]=\"\",Tableau_Dépenses_mensuelles[[#This Row],[Coût réel]]=\"\"),\"\",Tableau_Dépenses_mensuelles[[#This Row],[Coût prévu]]-Tableau_Dépenses_mensuelles[[#This Row],[Coût réel]])","v":{"v":10,"d":"10 $"}},{"$f":"Tableau_Dépenses_mensuelles[[#This Row],[Coût réel]]","v":40}]
[null,"Théâtre en direct","Loisirs",{"v":200,"d":"200 $"},{"v":150,"d":"150 $"},{"$f":"IF(OR(Tableau_Dépenses_mensuelles[[#This Row],[Coût prévu]]=\"\",Tableau_Dépenses_mensuelles[[#This Row],[Coût réel]]=\"\"),\"\",Tableau_Dépenses_mensuelles[[#This Row],[Coût prévu]]-Tableau_Dépenses_mensuelles[[#This Row],[Coût réel]])","v":{"v":50,"d":"50 $"}},{"$f":"Tableau_Dépenses_mensuelles[[#This Row],[Coût réel]]","v":150}]
[null,"Cinéma","Loisirs",{"v":50,"d":"50 $"},{"v":28,"d":"28 $"},{"$f":"IF(OR(Tableau_Dépenses_mensuelles[[#This Row],[Coût prévu]]=\"\",Tableau_Dépenses_mensuelles[[#This Row],[Coût réel]]=\"\"),\"\",Tableau_Dépenses_mensuelles[[#This Row],[Coût prévu]]-Tableau_Dépenses_mensuelles[[#This Row],[Coût réel]])","v":{"v":22,"d":"22 $"}},{"$f":"Tableau_Dépenses_mensuelles[[#This Row],[Coût réel]]","v":28}]
[null,"Musique (CD, téléchargements, etc.).","Loisirs",{"v":50,"d":"50 $"},{"v":30,"d":"30 $"},{"$f":"IF(OR(Tableau_Dépenses_mensuelles[[#This Row],[Coût prévu]]=\"\",Tableau_Dépenses_mensuelles[[#This Row],[Coût réel]]=\"\"),\"\",Tableau_Dépenses_mensuelles[[#This Row],[Coût prévu]]-Tableau_Dépenses_mensuelles[[#This Row],[Coût réel]])","v":{"v":20,"d":"20 $"}},{"$f":"Tableau_Dépenses_mensuelles[[#This Row],[Coût réel]]","v":30}]
[null,"Événements sportifs","Loisirs",{"v":0,"d":"0 $"},{"v":40,"d":"40 $"},{"$f":"IF(OR(Tableau_Dépenses_mensuelles[[#This Row],[Coût prévu]]=\"\",Tableau_Dépenses_mensuelles[[#This Row],[Coût réel]]=\"\"),\"\",Tableau_Dépenses_mensuelles[[#This Row],[Coût prévu]]-Tableau_Dépenses_mensuelles[[#This Row],[Coût réel]])","v":{"v":-40,"d":"(40 $)"}},{"$f":"Tableau_Dépenses_mensuelles[[#This Row],[Coût réel]]","v":40}]
[null,"Vidéo/DVD (achats)","Loisirs",{"v":20,"d":"20 $"},{"v":50,"d":"50 $"},{"$f":"IF(OR(Tableau_Dépenses_mensuelles[[#This Row],[Coût prévu]]=\"\",Tableau_Dépenses_mensuelles[[#This Row],[Coût réel]]=\"\"),\"\",Tableau_Dépenses_mensuelles[[#This Row],[Coût prévu]]-Tableau_Dépenses_mensuelles[[#This Row],[Coût réel]])","v":{"v":-30,"d":"(30 $)"}},{"$f":"Tableau_Dépenses_mensuelles[[#This Row],[Coût réel]]","v":50}]
[null,"Vidéo/DVD (location)","Loisirs",{"v":30,"d":"30 $"},{"v":20,"d":"20 $"},{"$f":"IF(OR(Tableau_Dépenses_mensuelles[[#This Row],[Coût prévu]]=\"\",Tableau_Dépenses_mensuelles[[#This Row],[Coût réel]]=\"\"),\"\",Tableau_Dépenses_mensuelles[[#This Row],[Coût prévu]]-Tableau_Dépenses_mensuelles[[#This Row],[Coût réel]])","v":{"v":10,"d":"10 $"}},{"$f":"Tableau_Dépenses_mensuelles[[#This Row],[Coût réel]]","v":20}]
[null,"Restaurant","Repas",{"v":1000,"d":"1,000 $"},{"v":1200,"d":"1,200 $"},{"$f":"IF(OR(Tableau_Dépenses_mensuelles[[#This Row],[Coût prévu]]=\"\",Tableau_Dépenses_mensuelles[[#This Row],[Coût réel]]=\"\"),\"\",Tableau_Dépenses_mensuelles[[#This Row],[Coût prévu]]-Tableau_Dépenses_mensuelles[[#This Row],[Coût réel]])","v":{"v":-200,"d":"(200 $)"}},{"$f":"Tableau_Dépenses_mensuelles[[#This Row],[Coût réel]]","v":1200}]
[null,"Provisions","Repas",{"v":100,"d":"100 $"},{"v":120,"d":"120 $"},{"$f":"IF(OR(Tableau_Dépenses_mensuelles[[#This Row],[Coût prévu]]=\"\",Tableau_Dépenses_mensuelles[[#This Row],[Coût réel]]=\"\"),\"\",Tableau_Dépenses_mensuelles[[#This Row],[Coût prévu]]-Tableau_Dépenses_mensuelles[[#This Row],[Coût réel]])","v":{"v":-20,"d":"(20 $)"}},{"$f":"Tableau_Dépenses_mensuelles[[#This Row],[Coût réel]]","v":120}]
[null,"Association caritative 1","Cadeaux et association caritative",{"v":75,"d":"75 $"},{"v":100,"d":"100 $"},{"$f":"IF(OR(Tableau_Dépenses_mensuelles[[#This Row],[Coût prévu]]=\"\",Tableau_Dépenses_mensuelles[[#This Row],[Coût réel]]=\"\"),\"\",Tableau_Dépenses_mensuelles[[#This Row],[Coût prévu]]-Tableau_Dépenses_mensuelles[[#This Row],[Coût réel]])","v":{"v":-25,"d":"(25 $)"}},{"$f":"Tableau_Dépenses_mensuelles[[#This Row],[Coût réel]]","v":100}]
[null,"Association caritative 2","Cadeaux et association caritative",{"v":25,"d":"25 $"},{"v":25,"d":"25 $"},{"$f":"IF(OR(Tableau_Dépenses_mensuelles[[#This Row],[Coût prévu]]=\"\",Tableau_Dépenses_mensuelles[[#This Row],[Coût réel]]=\"\"),\"\",Tableau_Dépenses_mensuelles[[#This Row],[Coût prévu]]-Tableau_Dépenses_mensuelles[[#This Row],[Coût réel]])","v":{"v":0,"d":"0 $"}},{"$f":"Tableau_Dépenses_mensuelles[[#This Row],[Coût réel]]","v":25}]
[null,"Cadeau 1","Cadeaux et association caritative",null,null,{"$f":"IF(OR(Tableau_Dépenses_mensuelles[[#This Row],[Coût prévu]]=\"\",Tableau_Dépenses_mensuelles[[#This Row],[Coût réel]]=\"\"),\"\",Tableau_Dépenses_mensuelles[[#This Row],[Coût prévu]]-Tableau_Dépenses_mensuelles[[#This Row],[Coût réel]])","v":""},{"$f":"Tableau_Dépenses_mensuelles[[#This Row],[Coût réel]]","v":0}]
[null,"Cadeau 2","Cadeaux et association caritative",null,null,{"$f":"IF(OR(Tableau_Dépenses_mensuelles[[#This Row],[Coût prévu]]=\"\",Tableau_Dépenses_mensuelles[[#This Row],[Coût réel]]=\"\"),\"\",Tableau_Dépenses_mensuelles[[#This Row],[Coût prévu]]-Tableau_Dépenses_mensuelles[[#This Row],[Coût réel]])","v":""},{"$f":"Tableau_Dépenses_mensuelles[[#This Row],[Coût réel]]","v":0}]
[null,"Câble/satellite","Logement",{"v":100,"d":"100 $"},{"v":100,"d":"100 $"},{"$f":"IF(OR(Tableau_Dépenses_mensuelles[[#This Row],[Coût prévu]]=\"\",Tableau_Dépenses_mensuelles[[#This Row],[Coût réel]]=\"\"),\"\",Tableau_Dépenses_mensuelles[[#This Row],[Coût prévu]]-Tableau_Dépenses_mensuelles[[#This Row],[Coût réel]])","v":{"v":0,"d":"0 $"}},{"$f":"Tableau_Dépenses_mensuelles[[#This Row],[Coût réel]]","v":100}]
[null,"Électricité","Logement",{"v":45,"d":"45 $"},{"v":50,"d":"50 $"},{"$f":"IF(OR(Tableau_Dépenses_mensuelles[[#This Row],[Coût prévu]]=\"\",Tableau_Dépenses_mensuelles[[#This Row],[Coût réel]]=\"\"),\"\",Tableau_Dépenses_mensuelles[[#This Row],[Coût prévu]]-Tableau_Dépenses_mensuelles[[#This Row],[Coût réel]])","v":{"v":-5,"d":"(5 $)"}},{"$f":"Tableau_Dépenses_mensuelles[[#This Row],[Coût réel]]","v":50}]
[null,"Essence","Logement",{"v":300,"d":"300 $"},{"v":400,"d":"400 $"},{"$f":"IF(OR(Tableau_Dépenses_mensuelles[[#This Row],[Coût prévu]]=\"\",Tableau_Dépenses_mensuelles[[#This Row],[Coût réel]]=\"\"),\"\",Tableau_Dépenses_mensuelles[[#This Row],[Coût prévu]]-Tableau_Dépenses_mensuelles[[#This Row],[Coût réel]])","v":{"v":-100,"d":"(100 $)"}},{"$f":"Tableau_Dépenses_mensuelles[[#This Row],[Coût réel]]","v":400}]
[null,"Services de nettoyage","Logement",{"v":200,"d":"200 $"},null,{"$f":"IF(OR(Tableau_Dépenses_mensuelles[[#This Row],[Coût prévu]]=\"\",Tableau_Dépenses_mensuelles[[#This Row],[Coût réel]]=\"\"),\"\",Tableau_Dépenses_mensuelles[[#This Row],[Coût prévu]]-Tableau_Dépenses_mensuelles[[#This Row],[Coût réel]])","v":""},{"$f":"Tableau_Dépenses_mensuelles[[#This Row],[Coût réel]]","v":0}]
[null,"Entretien","Logement",{"v":200,"d":"200 $"},{"v":150,"d":"150 $"},{"$f":"IF(OR(Tableau_Dépenses_mensuelles[[#This Row],[Coût prévu]]=\"\",Tableau_Dépenses_mensuelles[[#This Row],[Coût réel]]=\"\"),\"\",Tableau_Dépenses_mensuelles[[#This Row],[Coût prévu]]-Tableau_Dépenses_mensuelles[[#This Row],[Coût réel]])","v":{"v":50,"d":"50 $"}},{"$f":"Tableau_Dépenses_mensuelles[[#This Row],[Coût réel]]","v":150}]
[null,"Crédit immobilier ou loyer","Logement",{"v":1700,"d":"1,700 $"},{"v":1700,"d":"1,700 $"},{"$f":"IF(OR(Tableau_Dépenses_mensuelles[[#This Row],[Coût prévu]]=\"\",Tableau_Dépenses_mensuelles[[#This Row],[Coût réel]]=\"\"),\"\",Tableau_Dépenses_mensuelles[[#This Row],[Coût prévu]]-Tableau_Dépenses_mensuelles[[#This Row],[Coût réel]])","v":{"v":0,"d":"0 $"}},{"$f":"Tableau_Dépenses_mensuelles[[#This Row],[Coût réel]]","v":1700}]
[null,"Gaz/Fioul","Logement",null,null,{"$f":"IF(OR(Tableau_Dépenses_mensuelles[[#This Row],[Coût prévu]]=\"\",Tableau_Dépenses_mensuelles[[#This Row],[Coût réel]]=\"\"),\"\",Tableau_Dépenses_mensuelles[[#This Row],[Coût prévu]]-Tableau_Dépenses_mensuelles[[#This Row],[Coût réel]])","v":""},{"$f":"Tableau_Dépenses_mensuelles[[#This Row],[Coût réel]]","v":0}]
[null,"Internet","Logement",{"v":100,"d":"100 $"},{"v":100,"d":"100 $"},{"$f":"IF(OR(Tableau_Dépenses_mensuelles[[#This Row],[Coût prévu]]=\"\",Tableau_Dépenses_mensuelles[[#This Row],[Coût réel]]=\"\"),\"\",Tableau_Dépenses_mensuelles[[#This Row],[Coût prévu]]-Tableau_Dépenses_mensuelles[[#This Row],[Coût réel]])","v":{"v":0,"d":"0 $"}},{"$f":"Tableau_Dépenses_mensuelles[[#This Row],[Coût réel]]","v":100}]
[null,"Téléphone (cellulaire)","Logement",{"v":60,"d":"60 $"},{"v":60,"d":"60 $"},{"$f":"IF(OR(Tableau_Dépenses_mensuelles[[#This Row],[Coût prévu]]=\"\",Tableau_Dépenses_mensuelles[[#This Row],[Coût réel]]=\"\"),\"\",Tableau_Dépenses_mensuelles[[#This Row],[Coût prévu]]-Tableau_Dépenses_mensuelles[[#This Row],[Coût réel]])","v":{"v":0,"d":"0 $"}},{"$f":"Tableau_Dépenses_mensuelles[[#This Row],[Coût réel]]","v":60}]
[null,"Téléphone (domicile)","Logement",{"v":35,"d":"35 $"},{"v":39,"d":"39 $"},{"$f":"IF(OR(Tableau_Dépenses_mensuelles[[#This Row],[Coût prévu]]=\"\",Tableau_Dépenses_mensuelles[[#This Row],[Coût réel]]=\"\"),\"\",Tableau_Dépenses_mensuelles[[#This Row],[Coût prévu]]-Tableau_Dépenses_mensuelles[[#This Row],[Coût réel]])","v":{"v":-4,"d":"(4 $)"}},{"$f":"Tableau_Dépenses_mensuelles[[#This Row],[Coût réel]]","v":39}]
[null,"Stocks","Logement",{"v":40,"d":"40 $"},{"v":55,"d":"55 $"},{"$f":"IF(OR(Tableau_Dépenses_mensuelles[[#This Row],[Coût prévu]]=\"\",Tableau_Dépenses_mensuelles[[#This Row],[Coût réel]]=\"\"),\"\",Tableau_Dépenses_mensuelles[[#This Row],[Coût prévu]]-Tableau_Dépenses_mensuelles[[#This Row],[Coût réel]])","v":{"v":-15,"d":"(15 $)"}},{"$f":"Tableau_Dépenses_mensuelles[[#This Row],[Coût réel]]","v":55}]
[null,"Corbeille et élimination des déchets","Logement",{"v":25,"d":"25 $"},{"v":22,"d":"22 $"},{"$f":"IF(OR(Tableau_Dépenses_mensuelles[[#This Row],[Coût prévu]]=\"\",Tableau_Dépenses_mensuelles[[#This Row],[Coût réel]]=\"\"),\"\",Tableau_Dépenses_mensuelles[[#This Row],[Coût prévu]]-Tableau_Dépenses_mensuelles[[#This Row],[Coût réel]])","v":{"v":3,"d":"3 $"}},{"$f":"Tableau_Dépenses_mensuelles[[#This Row],[Coût réel]]","v":22}]
[null,"Eau et assainissement","Logement",{"v":25,"d":"25 $"},{"v":26,"d":"26 $"},{"$f":"IF(OR(Tableau_Dépenses_mensuelles[[#This Row],[Coût prévu]]=\"\",Tableau_Dépenses_mensuelles[[#This Row],[Coût réel]]=\"\"),\"\",Tableau_Dépenses_mensuelles[[#This Row],[Coût prévu]]-Tableau_Dépenses_mensuelles[[#This Row],[Coût réel]])","v":{"v":-1,"d":"(1 $)"}},{"$f":"Tableau_Dépenses_mensuelles[[#This Row],[Coût réel]]","v":26}]
[null,"Santé","Assurance",{"v":400,"d":"400 $"},{"v":400,"d":"400 $"},{"$f":"IF(OR(Tableau_Dépenses_mensuelles[[#This Row],[Coût prévu]]=\"\",Tableau_Dépenses_mensuelles[[#This Row],[Coût réel]]=\"\"),\"\",Tableau_Dépenses_mensuelles[[#This Row],[Coût prévu]]-Tableau_Dépenses_mensuelles[[#This Row],[Coût réel]])","v":{"v":0,"d":"0 $"}},{"$f":"Tableau_Dépenses_mensuelles[[#This Row],[Coût réel]]","v":400}]
[null,"Maison","Assurance",{"v":400,"d":"400 $"},{"v":400,"d":"400 $"},{"$f":"IF(OR(Tableau_Dépenses_mensuelles[[#This Row],[Coût prévu]]=\"\",Tableau_Dépenses_mensuelles[[#This Row],[Coût réel]]=\"\"),\"\",Tableau_Dépenses_mensuelles[[#This Row],[Coût prévu]]-Tableau_Dépenses_mensuelles[[#This Row],[Coût réel]])","v":{"v":0,"d":"0 $"}},{"$f":"Tableau_Dépenses_mensuelles[[#This Row],[Coût réel]]","v":400}]
[null,"Vie","Assurance",{"v":100,"d":"100 $"},{"v":100,"d":"100 $"},{"$f":"IF(OR(Tableau_Dépenses_mensuelles[[#This Row],[Coût prévu]]=\"\",Tableau_Dépenses_mensuelles[[#This Row],[Coût réel]]=\"\"),\"\",Tableau_Dépenses_mensuelles[[#This Row],[Coût prévu]]-Tableau_Dépenses_mensuelles[[#This Row],[Coût réel]])","v":{"v":0,"d":"0 $"}},{"$f":"Tableau_Dépenses_mensuelles[[#This Row],[Coût réel]]","v":100}]
[null,"Carte de crédit 1","Prêts",{"v":200,"d":"200 $"},{"v":200,"d":"200 $"},{"$f":"IF(OR(Tableau_Dépenses_mensuelles[[#This Row],[Coût prévu]]=\"\",Tableau_Dépenses_mensuelles[[#This Row],[Coût réel]]=\"\"),\"\",Tableau_Dépenses_mensuelles[[#This Row],[Coût prévu]]-Tableau_Dépenses_mensuelles[[#This Row],[Coût réel]])","v":{"v":0,"d":"0 $"}},{"$f":"Tableau_Dépenses_mensuelles[[#This Row],[Coût réel]]","v":200}]
[null,"Carte de crédit 2","Prêts",null,null,{"$f":"IF(OR(Tableau_Dépenses_mensuelles[[#This Row],[Coût prévu]]=\"\",Tableau_Dépenses_mensuelles[[#This Row],[Coût réel]]=\"\"),\"\",Tableau_Dépenses_mensuelles[[#This Row],[Coût prévu]]-Tableau_Dépenses_mensuelles[[#This Row],[Coût réel]])","v":""},{"$f":"Tableau_Dépenses_mensuelles[[#This Row],[Coût réel]]","v":0}]
[null,"Carte de crédit 3","Prêts",null,null,{"$f":"IF(OR(Tableau_Dépenses_mensuelles[[#This Row],[Coût prévu]]=\"\",Tableau_Dépenses_mensuelles[[#This Row],[Coût réel]]=\"\"),\"\",Tableau_Dépenses_mensuelles[[#This Row],[Coût prévu]]-Tableau_Dépenses_mensuelles[[#This Row],[Coût réel]])","v":""},{"$f":"Tableau_Dépenses_mensuelles[[#This Row],[Coût réel]]","v":0}]
[null,"Personnels","Prêts",null,null,{"$f":"IF(OR(Tableau_Dépenses_mensuelles[[#This Row],[Coût prévu]]=\"\",Tableau_Dépenses_mensuelles[[#This Row],[Coût réel]]=\"\"),\"\",Tableau_Dépenses_mensuelles[[#This Row],[Coût prévu]]-Tableau_Dépenses_mensuelles[[#This Row],[Coût réel]])","v":""},{"$f":"Tableau_Dépenses_mensuelles[[#This Row],[Coût réel]]","v":0}]
[null,"Étudiants","Prêts",null,null,{"$f":"IF(OR(Tableau_Dépenses_mensuelles[[#This Row],[Coût prévu]]=\"\",Tableau_Dépenses_mensuelles[[#This Row],[Coût réel]]=\"\"),\"\",Tableau_Dépenses_mensuelles[[#This Row],[Coût prévu]]-Tableau_Dépenses_mensuelles[[#This Row],[Coût réel]])","v":""},{"$f":"Tableau_Dépenses_mensuelles[[#This Row],[Coût réel]]","v":0}]
[null,"Habillement","Soins personnels",{"v":150,"d":"150 $"},{"v":140,"d":"140 $"},{"$f":"IF(OR(Tableau_Dépenses_mensuelles[[#This Row],[Coût prévu]]=\"\",Tableau_Dépenses_mensuelles[[#This Row],[Coût réel]]=\"\"),\"\",Tableau_Dépenses_mensuelles[[#This Row],[Coût prévu]]-Tableau_Dépenses_mensuelles[[#This Row],[Coût réel]])","v":{"v":10,"d":"10 $"}},{"$f":"Tableau_Dépenses_mensuelles[[#This Row],[Coût réel]]","v":140}]
[null,"Nettoyage à sec","Soins personnels",null,null,{"$f":"IF(OR(Tableau_Dépenses_mensuelles[[#This Row],[Coût prévu]]=\"\",Tableau_Dépenses_mensuelles[[#This Row],[Coût réel]]=\"\"),\"\",Tableau_Dépenses_mensuelles[[#This Row],[Coût prévu]]-Tableau_Dépenses_mensuelles[[#This Row],[Coût réel]])","v":""},{"$f":"Tableau_Dépenses_mensuelles[[#This Row],[Coût réel]]","v":0}]
[null,"Coiffeur/manucure","Soins personnels",null,null,{"$f":"IF(OR(Tableau_Dépenses_mensuelles[[#This Row],[Coût prévu]]=\"\",Tableau_Dépenses_mensuelles[[#This Row],[Coût réel]]=\"\"),\"\",Tableau_Dépenses_mensuelles[[#This Row],[Coût prévu]]-Tableau_Dépenses_mensuelles[[#This Row],[Coût réel]])","v":""},{"$f":"Tableau_Dépenses_mensuelles[[#This Row],[Coût réel]]","v":0}]
[null,"Club de sport","Soins personnels",null,null,{"$f":"IF(OR(Tableau_Dépenses_mensuelles[[#This Row],[Coût prévu]]=\"\",Tableau_Dépenses_mensuelles[[#This Row],[Coût réel]]=\"\"),\"\",Tableau_Dépenses_mensuelles[[#This Row],[Coût prévu]]-Tableau_Dépenses_mensuelles[[#This Row],[Coût réel]])","v":""},{"$f":"Tableau_Dépenses_mensuelles[[#This Row],[Coût réel]]","v":0}]
[null,"Frais médicaux","Soins personnels",null,null,{"$f":"IF(OR(Tableau_Dépenses_mensuelles[[#This Row],[Coût prévu]]=\"\",Tableau_Dépenses_mensuelles[[#This Row],[Coût réel]]=\"\"),\"\",Tableau_Dépenses_mensuelles[[#This Row],[Coût prévu]]-Tableau_Dépenses_mensuelles[[#This Row],[Coût réel]])","v":""},{"$f":"Tableau_Dépenses_mensuelles[[#This Row],[Coût réel]]","v":0}]
[null,"Repas","Animaux",{"v":150,"d":"150 $"},{"v":75,"d":"75 $"},{"$f":"IF(OR(Tableau_Dépenses_mensuelles[[#This Row],[Coût prévu]]=\"\",Tableau_Dépenses_mensuelles[[#This Row],[Coût réel]]=\"\"),\"\",Tableau_Dépenses_mensuelles[[#This Row],[Coût prévu]]-Tableau_Dépenses_mensuelles[[#This Row],[Coût réel]])","v":{"v":75,"d":"75 $"}},{"$f":"Tableau_Dépenses_mensuelles[[#This Row],[Coût réel]]","v":75}]
[null,"Articles de toilette","Animaux",{"v":20,"d":"20 $"},{"v":25,"d":"25 $"},{"$f":"IF(OR(Tableau_Dépenses_mensuelles[[#This Row],[Coût prévu]]=\"\",Tableau_Dépenses_mensuelles[[#This Row],[Coût réel]]=\"\"),\"\",Tableau_Dépenses_mensuelles[[#This Row],[Coût prévu]]-Tableau_Dépenses_mensuelles[[#This Row],[Coût réel]])","v":{"v":-5,"d":"(5 $)"}},{"$f":"Tableau_Dépenses_mensuelles[[#This Row],[Coût réel]]","v":25}]
[null,"Frais médicaux","Animaux",null,null,{"$f":"IF(OR(Tableau_Dépenses_mensuelles[[#This Row],[Coût prévu]]=\"\",Tableau_Dépenses_mensuelles[[#This Row],[Coût réel]]=\"\"),\"\",Tableau_Dépenses_mensuelles[[#This Row],[Coût prévu]]-Tableau_Dépenses_mensuelles[[#This Row],[Coût réel]])","v":""},{"$f":"Tableau_Dépenses_mensuelles[[#This Row],[Coût réel]]","v":0}]
[null,"Jouets","Animaux",null,null,{"$f":"IF(OR(Tableau_Dépenses_mensuelles[[#This Row],[Coût prévu]]=\"\",Tableau_Dépenses_mensuelles[[#This Row],[Coût réel]]=\"\"),\"\",Tableau_Dépenses_mensuelles[[#This Row],[Coût prévu]]-Tableau_Dépenses_mensuelles[[#This Row],[Coût réel]])","v":""},{"$f":"Tableau_Dépenses_mensuelles[[#This Row],[Coût réel]]","v":0}]
[null,"Compte de placement","Épargne",{"v":200,"d":"200 $"},{"v":200,"d":"200 $"},{"$f":"IF(OR(Tableau_Dépenses_mensuelles[[#This Row],[Coût prévu]]=\"\",Tableau_Dépenses_mensuelles[[#This Row],[Coût réel]]=\"\"),\"\",Tableau_Dépenses_mensuelles[[#This Row],[Coût prévu]]-Tableau_Dépenses_mensuelles[[#This Row],[Coût réel]])","v":{"v":0,"d":"0 $"}},{"$f":"Tableau_Dépenses_mensuelles[[#This Row],[Coût réel]]","v":200}]
[null,"Compte d’épargne retraite","Épargne",null,null,{"$f":"IF(OR(Tableau_Dépenses_mensuelles[[#This Row],[Coût prévu]]=\"\",Tableau_Dépenses_mensuelles[[#This Row],[Coût réel]]=\"\"),\"\",Tableau_Dépenses_mensuelles[[#This Row],[Coût prévu]]-Tableau_Dépenses_mensuelles[[#This Row],[Coût réel]])","v":""},{"$f":"Tableau_Dépenses_mensuelles[[#This Row],[Coût réel]]","v":0}]
[null,"Fédéraux","Impôts",{"v":300,"d":"300 $"},{"v":300,"d":"300 $"},{"$f":"IF(OR(Tableau_Dépenses_mensuelles[[#This Row],[Coût prévu]]=\"\",Tableau_Dépenses_mensuelles[[#This Row],[Coût réel]]=\"\"),\"\",Tableau_Dépenses_mensuelles[[#This Row],[Coût prévu]]-Tableau_Dépenses_mensuelles[[#This Row],[Coût réel]])","v":{"v":0,"d":"0 $"}},{"$f":"Tableau_Dépenses_mensuelles[[#This Row],[Coût réel]]","v":300}]
[null,"Locaux","Impôts",null,null,{"$f":"IF(OR(Tableau_Dépenses_mensuelles[[#This Row],[Coût prévu]]=\"\",Tableau_Dépenses_mensuelles[[#This Row],[Coût réel]]=\"\"),\"\",Tableau_Dépenses_mensuelles[[#This Row],[Coût prévu]]-Tableau_Dépenses_mensuelles[[#This Row],[Coût réel]])","v":""},{"$f":"Tableau_Dépenses_mensuelles[[#This Row],[Coût réel]]","v":0}]
[null,"Régionaux","Impôts",null,null,{"$f":"IF(OR(Tableau_Dépenses_mensuelles[[#This Row],[Coût prévu]]=\"\",Tableau_Dépenses_mensuelles[[#This Row],[Coût réel]]=\"\"),\"\",Tableau_Dépenses_mensuelles[[#This Row],[Coût prévu]]-Tableau_Dépenses_mensuelles[[#This Row],[Coût réel]])","v":""},{"$f":"Tableau_Dépenses_mensuelles[[#This Row],[Coût réel]]","v":0}]
[null,"Bus/taxi","Transport",{"v":100,"d":"100 $"},{"v":150,"d":"150 $"},{"$f":"IF(OR(Tableau_Dépenses_mensuelles[[#This Row],[Coût prévu]]=\"\",Tableau_Dépenses_mensuelles[[#This Row],[Coût réel]]=\"\"),\"\",Tableau_Dépenses_mensuelles[[#This Row],[Coût prévu]]-Tableau_Dépenses_mensuelles[[#This Row],[Coût réel]])","v":{"v":-50,"d":"(50 $)"}},{"$f":"Tableau_Dépenses_mensuelles[[#This Row],[Coût réel]]","v":150}]
[null,"Carburant","Transport",{"v":450,"d":"450 $"},{"v":400,"d":"400 $"},{"$f":"IF(OR(Tableau_Dépenses_mensuelles[[#This Row],[Coût prévu]]=\"\",Tableau_Dépenses_mensuelles[[#This Row],[Coût réel]]=\"\"),\"\",Tableau_Dépenses_mensuelles[[#This Row],[Coût prévu]]-Tableau_Dépenses_mensuelles[[#This Row],[Coût réel]])","v":{"v":50,"d":"50 $"}},{"$f":"Tableau_Dépenses_mensuelles[[#This Row],[Coût réel]]","v":400}]
[null,"Assurance","Transport",{"v":300,"d":"300 $"},{"v":300,"d":"300 $"},{"$f":"IF(OR(Tableau_Dépenses_mensuelles[[#This Row],[Coût prévu]]=\"\",Tableau_Dépenses_mensuelles[[#This Row],[Coût réel]]=\"\"),\"\",Tableau_Dépenses_mensuelles[[#This Row],[Coût prévu]]-Tableau_Dépenses_mensuelles[[#This Row],[Coût réel]])","v":{"v":0,"d":"0 $"}},{"$f":"Tableau_Dépenses_mensuelles[[#This Row],[Coût réel]]","v":300}]
[null,"Autorisation ","Transport",{"v":25,"d":"25 $"},{"v":25,"d":"25 $"},{"$f":"IF(OR(Tableau_Dépenses_mensuelles[[#This Row],[Coût prévu]]=\"\",Tableau_Dépenses_mensuelles[[#This Row],[Coût réel]]=\"\"),\"\",Tableau_Dépenses_mensuelles[[#This Row],[Coût prévu]]-Tableau_Dépenses_mensuelles[[#This Row],[Coût réel]])","v":{"v":0,"d":"0 $"}},{"$f":"Tableau_Dépenses_mensuelles[[#This Row],[Coût réel]]","v":25}]
[null,"Entretien","Transport",{"v":100,"d":"100 $"},{"v":50,"d":"50 $"},{"$f":"IF(OR(Tableau_Dépenses_mensuelles[[#This Row],[Coût prévu]]=\"\",Tableau_Dépenses_mensuelles[[#This Row],[Coût réel]]=\"\"),\"\",Tableau_Dépenses_mensuelles[[#This Row],[Coût prévu]]-Tableau_Dépenses_mensuelles[[#This Row],[Coût réel]])","v":{"v":50,"d":"50 $"}},{"$f":"Tableau_Dépenses_mensuelles[[#This Row],[Coût réel]]","v":50}]
[null,"Frais de stationnement","Transport",null,null,{"$f":"IF(OR(Tableau_Dépenses_mensuelles[[#This Row],[Coût prévu]]=\"\",Tableau_Dépenses_mensuelles[[#This Row],[Coût réel]]=\"\"),\"\",Tableau_Dépenses_mensuelles[[#This Row],[Coût prévu]]-Tableau_Dépenses_mensuelles[[#This Row],[Coût réel]])","v":""},{"$f":"Tableau_Dépenses_mensuelles[[#This Row],[Coût réel]]","v":0}]
[null,"Paiement véhicule","Transport",{"v":450,"d":"450 $"},{"v":450,"d":"450 $"},{"$f":"IF(OR(Tableau_Dépenses_mensuelles[[#This Row],[Coût prévu]]=\"\",Tableau_Dépenses_mensuelles[[#This Row],[Coût réel]]=\"\"),\"\",Tableau_Dépenses_mensuelles[[#This Row],[Coût prévu]]-Tableau_Dépenses_mensuelles[[#This Row],[Coût réel]])","v":{"v":0,"d":"0 $"}},{"$f":"Tableau_Dépenses_mensuelles[[#This Row],[Coût réel]]","v":450}]

{"sheet":"Données supplémentaires","index":3,"n_rows":17,"n_cols":6,"rows_kept":17}
[{"$nulls":5}," "]
[null,"Tableau croisé dynamique pour graphique budgétaire",null,null,"Liste des catégories"]
[]
[null,"Catégorie","Coût",null,"Pour ajouter une catégorie, saisissez-la ci-dessous"]
[null,"Animaux",{"v":100,"d":"100 $"},null,"Enfants"]
[null,"Cadeaux et association caritative",{"v":125,"d":"125 $"},null,"Loisirs"]
[null,"Enfants",{"v":140,"d":"140 $"},null,"Repas"]
[null,"Soins personnels",{"v":140,"d":"140 $"},null,"Cadeaux et association caritative"]
[null,"Épargne",{"v":200,"d":"200 $"},null,"Logement"]
[null,"Prêts",{"v":200,"d":"200 $"},null,"Assurance"]
[null,"Impôts",{"v":300,"d":"300 $"},null,"Prêts"]
[null,"Loisirs",{"v":358,"d":"358 $"},null,"Soins personnels"]
[null,"Assurance",{"v":900,"d":"900 $"},null,"Animaux"]
[null,"Repas",{"v":1320,"d":"1,320 $"},null,"Épargne"]
[null,"Transport",{"v":1375,"d":"1,375 $"},null,"Impôts"]
[null,"Logement",{"v":2702,"d":"2,702 $"},null,"Transport"]
[null,"Total général",{"v":7860,"d":"7,860 $"}]